[Event "Late-Titled-Tuesday-Blitz-July-09-2024"]
[Site "Chess.com"]
[Date "2024.07.09"]
[Round "3"]
[White "klercaku"]
[Black "ManMish2"]
[Result "0-1"]
[WhiteElo "2390"]
[BlackElo "2599"]
[TimeControl "180+1"]
[EndTime "14:29:24 PDT"]
[Termination "ManMish2 won by checkmate"]

1. e4 {[%clk 0:03:00.9]} 1... e5 {[%clk 0:02:59.6]} 2. Nf3 {[%clk 0:03:00.4]}
2... Nc6 {[%clk 0:03:00.2]} 3. d4 {[%clk 0:03:00.7]} 3... exd4 {[%clk
0:02:59.7]} 4. Nxd4 {[%clk 0:03:01.6]} 4... Nf6 {[%clk 0:02:59.7]} 5. Nc3 {[%clk
0:03:01.8]} 5... Bb4 {[%clk 0:02:59]} 6. Nxc6 {[%clk 0:03:01.7]} 6... bxc6
{[%clk 0:02:59.9]} 7. Bd3 {[%clk 0:03:01.3]} 7... d5 {[%clk 0:02:59.7]} 8. exd5
{[%clk 0:03:02.2]} 8... O-O {[%clk 0:02:58.3]} 9. O-O {[%clk 0:02:59.3]} 9...
Bg4 {[%clk 0:02:57.8]} 10. Be2 {[%clk 0:02:49.8]} 10... Bxe2 {[%clk 0:02:56.9]}
11. Qxe2 {[%clk 0:02:48.3]} 11... cxd5 {[%clk 0:02:49.5]} 12. Bg5 {[%clk
0:02:44.5]} 12... c6 {[%clk 0:02:48.7]} 13. Qf3 {[%clk 0:02:44]} 13... h6 {[%clk
0:02:39.3]} 14. Bxf6 {[%clk 0:02:39.9]} 14... Qxf6 {[%clk 0:02:40.2]} 15. Qxf6
{[%clk 0:02:39.7]} 15... gxf6 {[%clk 0:02:41.1]} 16. Ne2 {[%clk 0:02:36.4]}
16... Rfe8 {[%clk 0:02:35.7]} 17. Nd4 {[%clk 0:02:31.2]} 17... Rac8 {[%clk
0:01:59.9]} 18. a3 {[%clk 0:02:21.9]} 18... Bc5 {[%clk 0:01:57.8]} 19. Nf5
{[%clk 0:02:18.5]} 19... Re2 {[%clk 0:01:42.4]} 20. Rac1 {[%clk 0:02:17.6]}
20... Kh7 {[%clk 0:01:38.8]} 21. b4 {[%clk 0:02:11.8]} 21... Bb6 {[%clk
0:01:34.2]} 22. c4 {[%clk 0:02:08]} 22... dxc4 {[%clk 0:01:31.1]} 23. Rxc4
{[%clk 0:02:07.6]} 23... Rd8 {[%clk 0:01:27.7]} 24. Ng3 {[%clk 0:01:42.6]} 24...
Re6 {[%clk 0:01:08.1]} 25. a4 {[%clk 0:01:21.5]} 25... a6 {[%clk 0:01:03.9]} 26.
Ne4 {[%clk 0:01:05.8]} 26... Rd4 {[%clk 0:01:01.5]} 27. Rxd4 {[%clk 0:01:00.9]}
27... Bxd4 {[%clk 0:01:02.4]} 28. Ng3 {[%clk 0:00:55.3]} 28... Bc3 {[%clk
0:00:44.3]} 29. Rb1 {[%clk 0:00:49.2]} 29... Re1+ {[%clk 0:00:29.9]} 30. Rxe1
{[%clk 0:00:48.4]} 30... Bxe1 {[%clk 0:00:30.8]} 31. Ne4 {[%clk 0:00:18.5]}
31... Bxb4 {[%clk 0:00:30.1]} 32. Nxf6+ {[%clk 0:00:18]} 32... Kg6 {[%clk
0:00:18.7]} 33. Nd7 {[%clk 0:00:18.6]} 33... c5 {[%clk 0:00:18.7]} 34. Kf1
{[%clk 0:00:18.7]} 34... Kf5 {[%clk 0:00:18.1]} 35. Nb6 {[%clk 0:00:16.2]} 35...
Ke4 {[%clk 0:00:17.1]} 36. Ke2 {[%clk 0:00:16.4]} 36... Kd4 {[%clk 0:00:15.7]}
37. Kd1 {[%clk 0:00:16.2]} 37... Kd3 {[%clk 0:00:14.8]} 38. Nd5 {[%clk
0:00:13.5]} 38... a5 {[%clk 0:00:09.7]} 39. Nf4+ {[%clk 0:00:12]} 39... Kc3
{[%clk 0:00:09.1]} 40. Nd5+ {[%clk 0:00:11.5]} 40... Kb3 {[%clk 0:00:09.1]} 41.
Nb6 {[%clk 0:00:11.9]} 41... c4 {[%clk 0:00:08.9]} 42. Kc1 {[%clk 0:00:12.2]}
42... c3 {[%clk 0:00:08.8]} 43. Nd5 {[%clk 0:00:12.3]} 43... Ba3+ {[%clk
0:00:09]} 44. Kd1 {[%clk 0:00:06.8]} 44... c2+ {[%clk 0:00:09.9]} 45. Ke2 {[%clk
0:00:07.7]} 45... c1=Q {[%clk 0:00:10.3]} 46. Ne3 {[%clk 0:00:08.6]} 46... Qb2+
{[%clk 0:00:10.2]} 47. Kf3 {[%clk 0:00:08.5]} 47... Qf6+ {[%clk 0:00:10.8]} 48.
Kg3 {[%clk 0:00:08.7]} 48... Bd6+ {[%clk 0:00:10.6]} 49. Kh3 {[%clk 0:00:08.7]}
49... Qe6+ {[%clk 0:00:11.1]} 50. g4 {[%clk 0:00:08.7]} 50... Qe4 {[%clk
0:00:10.6]} 51. Kh4 {[%clk 0:00:07.1]} 51... Bf4 {[%clk 0:00:10.9]} 52. Nf5
{[%clk 0:00:06.3]} 52... Bg5+ {[%clk 0:00:10.8]} 53. Kh5 {[%clk 0:00:06.7]}
53... Qg2 {[%clk 0:00:08.6]} 54. h4 {[%clk 0:00:07.3]} 54... Bf4 {[%clk
0:00:07.1]} 55. f3 {[%clk 0:00:03.6]} 55... Kxa4 {[%clk 0:00:05.8]} 56. Nd4
{[%clk 0:00:02]} 56... Qd2 {[%clk 0:00:05.6]} 57. Nf5 {[%clk 0:00:02.5]} 57...
Qd3 {[%clk 0:00:05]} 58. Ng7 {[%clk 0:00:02]} 58... Qg6# {[%clk 0:00:05]} 0-1

[Event "Late-Titled-Tuesday-Blitz-July-09-2024"]
[Site "Chess.com"]
[Date "2024.07.09"]
[Round "3"]
[White "cthulhuuu"]
[Black "ValeriyGrinev"]
[Result "0-1"]
[WhiteElo "2454"]
[BlackElo "2676"]
[TimeControl "180+1"]
[EndTime "14:29:30 PDT"]
[Termination "ValeriyGrinev won on time"]

1. e4 {[%clk 0:03:00.3]} 1... c6 {[%clk 0:03:00.1]} 2. d3 {[%clk 0:03:00.6]}
2... d5 {[%clk 0:03:01]} 3. Nd2 {[%clk 0:03:01.3]} 3... e5 {[%clk 0:03:00.6]} 4.
Ngf3 {[%clk 0:03:02.2]} 4... Bd6 {[%clk 0:03:00.2]} 5. d4 {[%clk 0:03:02.7]}
5... exd4 {[%clk 0:02:59.8]} 6. exd5 {[%clk 0:03:03.6]} 6... Nf6 {[%clk
0:02:59.9]} 7. dxc6 {[%clk 0:03:04.5]} 7... Nxc6 {[%clk 0:03:00.6]} 8. Nb3
{[%clk 0:03:04.7]} 8... O-O {[%clk 0:02:59.6]} 9. Be2 {[%clk 0:03:05.1]} 9...
Bc7 {[%clk 0:02:58.2]} 10. O-O {[%clk 0:03:00.3]} 10... Re8 {[%clk 0:02:54.1]}
11. Nc5 {[%clk 0:02:49.7]} 11... Qd5 {[%clk 0:02:41.8]} 12. Nd3 {[%clk
0:02:47.5]} 12... Bg4 {[%clk 0:02:36.8]} 13. h3 {[%clk 0:02:43.4]} 13... Bf5
{[%clk 0:02:34.8]} 14. Re1 {[%clk 0:02:29.5]} 14... Rad8 {[%clk 0:02:32.8]} 15.
Bg5 {[%clk 0:02:27.7]} 15... Ba5 {[%clk 0:02:15.8]} 16. Bd2 {[%clk 0:02:12.5]}
16... Bc7 {[%clk 0:02:13.7]} 17. Bg5 {[%clk 0:02:12.7]} 17... Qd6 {[%clk
0:01:59.6]} 18. Bf4 {[%clk 0:02:10.6]} 18... Qd7 {[%clk 0:01:59.8]} 19. Bxc7
{[%clk 0:02:10.3]} 19... Qxc7 {[%clk 0:01:59.9]} 20. Qd2 {[%clk 0:02:08]} 20...
Ne4 {[%clk 0:01:59.3]} 21. Qf4 {[%clk 0:02:05.9]} 21... Qc8 {[%clk 0:01:50.1]}
22. Rad1 {[%clk 0:01:19.9]} 22... Bg6 {[%clk 0:01:49.7]} 23. Nh4 {[%clk
0:01:14]} 23... Nf6 {[%clk 0:01:37.7]} 24. Nxg6 {[%clk 0:01:11.4]} 24... hxg6
{[%clk 0:01:38.6]} 25. Bf3 {[%clk 0:01:11]} 25... Rxe1+ {[%clk 0:01:32]} 26.
Rxe1 {[%clk 0:01:11.9]} 26... Re8 {[%clk 0:01:32.6]} 27. Rxe8+ {[%clk
0:00:56.9]} 27... Qxe8 {[%clk 0:01:33.5]} 28. Bxc6 {[%clk 0:00:43.7]} 28... Qxc6
{[%clk 0:01:34.4]} 29. Qxd4 {[%clk 0:00:43.3]} 29... Qxc2 {[%clk 0:01:33.7]} 30.
Ne5 {[%clk 0:00:43.7]} 30... Qc1+ {[%clk 0:01:27.6]} 31. Kh2 {[%clk 0:00:42.4]}
31... Qc7 {[%clk 0:01:28.5]} 32. f4 {[%clk 0:00:38]} 32... a6 {[%clk 0:01:26.3]}
33. Qc4 {[%clk 0:00:26.9]} 33... Qe7 {[%clk 0:01:19.8]} 34. Nxg6 {[%clk
0:00:24.4]} 34... Qe8 {[%clk 0:01:05.5]} 35. Ne5 {[%clk 0:00:23.1]} 35... b5
{[%clk 0:01:04.9]} 36. Qb3 {[%clk 0:00:22.4]} 36... Ne4 {[%clk 0:00:58.7]} 37.
Qd5 {[%clk 0:00:22.2]} 37... Nf6 {[%clk 0:00:57.9]} 38. Qc6 {[%clk 0:00:20.3]}
38... Qd8 {[%clk 0:00:54.2]} 39. Qxa6 {[%clk 0:00:20.2]} 39... Qd2 {[%clk
0:00:51.6]} 40. Qc8+ {[%clk 0:00:20.2]} 40... Kh7 {[%clk 0:00:51.6]} 41. Qf5+
{[%clk 0:00:20.4]} 41... Kg8 {[%clk 0:00:51.3]} 42. Qc8+ {[%clk 0:00:13.8]}
42... Kh7 {[%clk 0:00:51.4]} 43. Qf5+ {[%clk 0:00:09.5]} 43... Kg8 {[%clk
0:00:51.7]} 44. Ng4 {[%clk 0:00:09.9]} 44... Nxg4+ {[%clk 0:00:48.2]} 45. hxg4
{[%clk 0:00:10.3]} 45... Qxb2 {[%clk 0:00:48.3]} 46. Qc8+ {[%clk 0:00:10.7]}
46... Kh7 {[%clk 0:00:48]} 47. Qf5+ {[%clk 0:00:11.1]} 47... Kg8 {[%clk
0:00:48.4]} 48. Qd5 {[%clk 0:00:11.2]} 48... Qb4 {[%clk 0:00:46.1]} 49. Kg3
{[%clk 0:00:09.6]} 49... Qc3+ {[%clk 0:00:45.8]} 50. Qf3 {[%clk 0:00:09.9]}
50... Qd2 {[%clk 0:00:42.5]} 51. Qa8+ {[%clk 0:00:09.8]} 51... Kh7 {[%clk
0:00:42.5]} 52. Qe4+ {[%clk 0:00:10.2]} 52... g6 {[%clk 0:00:42]} 53. Qb1 {[%clk
0:00:05.1]} 53... Qe3+ {[%clk 0:00:41.4]} 54. Kh4 {[%clk 0:00:03.1]} 54... Qxf4
{[%clk 0:00:30.9]} 55. Kh3 {[%clk 0:00:03.6]} 55... Qe3+ {[%clk 0:00:29.5]} 56.
g3 {[%clk 0:00:03.3]} 56... Qe2 {[%clk 0:00:28.5]} 57. Qb3 {[%clk 0:00:03.1]}
57... Qf1+ {[%clk 0:00:28]} 58. Kh2 {[%clk 0:00:03.6]} 58... Kg8 {[%clk
0:00:25]} 59. Qc2 {[%clk 0:00:01.3]} 59... b4 {[%clk 0:00:21.4]} 60. Qc8+ {[%clk
0:00:01.5]} 60... Kg7 {[%clk 0:00:20.8]} 61. Qc2 {[%clk 0:00:01.4]} 61... Qf6
{[%clk 0:00:19.4]} 62. Kg2 {[%clk 0:00:01.1]} 62... Qc3 {[%clk 0:00:19]} 63. Kh3
{[%clk 0:00:02]} 63... Qxc2 {[%clk 0:00:19.1]} 0-1

[Event "Late-Titled-Tuesday-Blitz-July-09-2024"]
[Site "Chess.com"]
[Date "2024.07.09"]
[Round "3"]
[White "Hirna2005"]
[Black "yaguigor"]
[Result "0-1"]
[WhiteElo "2414"]
[BlackElo "2622"]
[TimeControl "180+1"]
[EndTime "14:29:35 PDT"]
[Termination "yaguigor won by resignation"]

1. e4 {[%clk 0:03:00.9]} 1... Nc6 {[%clk 0:02:58.9]} 2. Nf3 {[%clk 0:03:00.1]}
2... e5 {[%clk 0:02:58.3]} 3. Bc4 {[%clk 0:02:59.4]} 3... Bc5 {[%clk 0:02:57.7]}
4. c3 {[%clk 0:02:58.6]} 4... Nf6 {[%clk 0:02:56.9]} 5. d4 {[%clk 0:02:58.9]}
5... exd4 {[%clk 0:02:56.4]} 6. e5 {[%clk 0:02:59.3]} 6... d5 {[%clk 0:02:54]}
7. Bb5 {[%clk 0:02:58.6]} 7... Ne4 {[%clk 0:02:54]} 8. Nxd4 {[%clk 0:02:58.2]}
8... O-O {[%clk 0:02:52.1]} 9. Bxc6 {[%clk 0:02:57]} 9... bxc6 {[%clk
0:02:51.1]} 10. O-O {[%clk 0:02:56.4]} 10... Qh4 {[%clk 0:02:38.1]} 11. Be3
{[%clk 0:02:50]} 11... Bd7 {[%clk 0:02:14.5]} 12. Nd2 {[%clk 0:02:46.6]} 12...
f5 {[%clk 0:02:05.6]} 13. N4f3 {[%clk 0:02:30.1]} 13... Qh5 {[%clk 0:01:59.8]}
14. Bxc5 {[%clk 0:02:12.2]} 14... Nxc5 {[%clk 0:01:58.7]} 15. Nd4 {[%clk
0:02:05.7]} 15... Qxd1 {[%clk 0:01:55.5]} 16. Rfxd1 {[%clk 0:02:03.8]} 16... Nd3
{[%clk 0:01:39.6]} 17. e6 {[%clk 0:01:56]} 17... Be8 {[%clk 0:01:39.1]} 18. b4
{[%clk 0:01:55.1]} 18... a5 {[%clk 0:01:33]} 19. N2f3 {[%clk 0:01:51.1]} 19...
Nb2 {[%clk 0:01:29.2]} 20. Rdb1 {[%clk 0:01:41.4]} 20... Nc4 {[%clk 0:01:28.1]}
21. a4 {[%clk 0:01:36.5]} 21... h6 {[%clk 0:01:22]} 22. b5 {[%clk 0:01:36]}
22... cxb5 {[%clk 0:01:20.2]} 23. Nxb5 {[%clk 0:01:34.5]} 23... Bxb5 {[%clk
0:01:15.5]} 24. Rxb5 {[%clk 0:01:32]} 24... c6 {[%clk 0:01:13.3]} 25. Rb7 {[%clk
0:01:22.6]} 25... Rae8 {[%clk 0:01:05.4]} 26. Re1 {[%clk 0:01:20.3]} 26... Rf6
{[%clk 0:01:04.8]} 27. e7 {[%clk 0:00:36.7]} 27... Nd6 {[%clk 0:01:01.6]} 28.
Rd7 {[%clk 0:00:34.9]} 28... Ne4 {[%clk 0:00:59.8]} 29. Nd4 {[%clk 0:00:30.2]}
29... Kf7 {[%clk 0:00:51.3]} 30. f3 {[%clk 0:00:30]} 30... Nxc3 {[%clk
0:00:45.4]} 31. Rc1 {[%clk 0:00:24.2]} 31... c5 {[%clk 0:00:41.7]} 32. Rxc3
{[%clk 0:00:20.5]} 32... cxd4 {[%clk 0:00:41.8]} 33. Rd3 {[%clk 0:00:20.3]}
33... Rxe7 {[%clk 0:00:40.3]} 34. Rxe7+ {[%clk 0:00:20.4]} 34... Kxe7 {[%clk
0:00:41.2]} 35. Rxd4 {[%clk 0:00:20.9]} 35... Kd6 {[%clk 0:00:39.3]} 36. Kf2
{[%clk 0:00:20.9]} 36... Kc5 {[%clk 0:00:39.3]} 37. Rd1 {[%clk 0:00:18.1]} 37...
d4 {[%clk 0:00:37.5]} 38. Ke2 {[%clk 0:00:17.4]} 38... Re6+ {[%clk 0:00:36.2]}
39. Kd2 {[%clk 0:00:17.4]} 39... Re3 {[%clk 0:00:33.5]} 40. Rb1 {[%clk
0:00:16.6]} 40... Ra3 {[%clk 0:00:29.5]} 41. Rb5+ {[%clk 0:00:16.3]} 41... Kc4
{[%clk 0:00:30]} 42. Rxa5 {[%clk 0:00:16.6]} 42... Ra2+ {[%clk 0:00:30.3]} 43.
Ke1 {[%clk 0:00:16.6]} 43... Rxg2 {[%clk 0:00:26.3]} 44. Ra8 {[%clk 0:00:15.1]}
44... Rxh2 {[%clk 0:00:22.3]} 45. a5 {[%clk 0:00:14.3]} 45... Ra2 {[%clk
0:00:18]} 46. a6 {[%clk 0:00:12.3]} 46... Kd3 {[%clk 0:00:17.4]} 47. f4 {[%clk
0:00:08.6]} 47... Ke4 {[%clk 0:00:15.3]} 48. Rg8 {[%clk 0:00:06.1]} 48... Rxa6
{[%clk 0:00:12.9]} 49. Rxg7 {[%clk 0:00:07]} 49... Kxf4 {[%clk 0:00:12.8]} 50.
Rh7 {[%clk 0:00:06.9]} 50... Ke3 {[%clk 0:00:10.7]} 51. Re7+ {[%clk 0:00:05.9]}
51... Kd3 {[%clk 0:00:10.9]} 52. Kf2 {[%clk 0:00:06.2]} 52... f4 {[%clk
0:00:08.3]} 53. Kf3 {[%clk 0:00:06.4]} 53... Ra1 {[%clk 0:00:07.3]} 54. Kxf4
{[%clk 0:00:05.8]} 54... Rf1+ {[%clk 0:00:07.4]} 55. Kg3 {[%clk 0:00:05.9]}
55... Kd2 {[%clk 0:00:06.4]} 56. Re6 {[%clk 0:00:05.1]} 56... d3 {[%clk
0:00:05.9]} 57. Rxh6 {[%clk 0:00:05]} 57... Kc2 {[%clk 0:00:05.1]} 58. Rc6+
{[%clk 0:00:05.1]} 58... Kd1 {[%clk 0:00:05.3]} 59. Kg2 {[%clk 0:00:05.3]} 59...
Rf8 {[%clk 0:00:04.6]} 60. Rc7 {[%clk 0:00:04.7]} 60... d2 {[%clk 0:00:05]} 61.
Rd7 {[%clk 0:00:03.7]} 61... Rc8 {[%clk 0:00:03.1]} 62. Kf2 {[%clk 0:00:04]}
62... Kc1 {[%clk 0:00:03.5]} 63. Ke2 {[%clk 0:00:04.4]} 63... Re8+ {[%clk
0:00:03.1]} 64. Kf3 {[%clk 0:00:04.3]} 64... d1=Q+ {[%clk 0:00:03.9]} 65. Rxd1+
{[%clk 0:00:04.1]} 65... Kxd1 {[%clk 0:00:04.8]} 0-1

[Event "Late-Titled-Tuesday-Blitz-July-09-2024"]
[Site "Chess.com"]
[Date "2024.07.09"]
[Round "3"]
[White "Vladimir_2020"]
[Black "rpragchess"]
[Result "1/2-1/2"]
[WhiteElo "2757"]
[BlackElo "3103"]
[TimeControl "180+1"]
[EndTime "14:29:40 PDT"]
[Termination "Game drawn by repetition"]

1. e4 {[%clk 0:03:00.9]} 1... Nc6 {[%clk 0:02:56.9]} 2. Nf3 {[%clk 0:02:59.4]}
2... d6 {[%clk 0:02:57]} 3. d4 {[%clk 0:02:57.1]} 3... Nf6 {[%clk 0:02:57.3]} 4.
Nc3 {[%clk 0:02:56.2]} 4... g6 {[%clk 0:02:57.9]} 5. Be2 {[%clk 0:02:53.5]} 5...
Bg7 {[%clk 0:02:58.1]} 6. O-O {[%clk 0:02:53.3]} 6... O-O {[%clk 0:02:58.8]} 7.
d5 {[%clk 0:02:50.7]} 7... Nb8 {[%clk 0:02:58.7]} 8. Re1 {[%clk 0:02:49.5]} 8...
e5 {[%clk 0:02:58.4]} 9. dxe6 {[%clk 0:02:40.5]} 9... Bxe6 {[%clk 0:02:58.6]}
10. h3 {[%clk 0:02:40.5]} 10... Nc6 {[%clk 0:02:57.1]} 11. Bf1 {[%clk
0:02:35.2]} 11... Re8 {[%clk 0:02:56.5]} 12. Bf4 {[%clk 0:02:31.9]} 12... h6
{[%clk 0:02:53.6]} 13. Qd2 {[%clk 0:02:30.1]} 13... g5 {[%clk 0:02:53.1]} 14.
Bh2 {[%clk 0:02:29.8]} 14... g4 {[%clk 0:02:39.5]} 15. hxg4 {[%clk 0:02:28.5]}
15... Nxg4 {[%clk 0:02:37.6]} 16. Bg3 {[%clk 0:02:26.3]} 16... Qf6 {[%clk
0:02:35]} 17. Nd5 {[%clk 0:02:00.1]} 17... Bxd5 {[%clk 0:02:34.9]} 18. exd5
{[%clk 0:02:00]} 18... Nd4 {[%clk 0:02:33.9]} 19. Nxd4 {[%clk 0:01:57.1]} 19...
Qxd4 {[%clk 0:02:33.9]} 20. Qxd4 {[%clk 0:01:57.1]} 20... Bxd4 {[%clk
0:02:34.1]} 21. c3 {[%clk 0:01:56.6]} 21... Bb6 {[%clk 0:02:33.6]} 22. Bb5
{[%clk 0:01:51.5]} 22... Rxe1+ {[%clk 0:02:13.1]} 23. Rxe1 {[%clk 0:01:50.6]}
23... Nf6 {[%clk 0:02:12.9]} 24. c4 {[%clk 0:01:20.3]} 24... Bd4 {[%clk
0:02:11.4]} 25. Re2 {[%clk 0:01:19.3]} 25... a6 {[%clk 0:01:59.8]} 26. Ba4
{[%clk 0:01:19.2]} 26... b5 {[%clk 0:01:58.5]} 27. cxb5 {[%clk 0:01:04.2]} 27...
axb5 {[%clk 0:01:58]} 28. Bb3 {[%clk 0:01:04.4]} 28... Bb6 {[%clk 0:01:42.4]}
29. Kf1 {[%clk 0:00:58.7]} 29... b4 {[%clk 0:01:39.6]} 30. f3 {[%clk 0:00:53.2]}
30... Ra5 {[%clk 0:01:35.8]} 31. Be1 {[%clk 0:00:40.8]} 31... Nxd5 {[%clk
0:01:21.1]} 32. Bxd5 {[%clk 0:00:40.3]} 32... Rxd5 {[%clk 0:01:22]} 33. Bxb4
{[%clk 0:00:40.1]} 33... Rh5 {[%clk 0:01:09.2]} 34. Re8+ {[%clk 0:00:35]} 34...
Kh7 {[%clk 0:01:05.1]} 35. Bc3 {[%clk 0:00:27.8]} 35... Rh1+ {[%clk 0:00:51.1]}
36. Ke2 {[%clk 0:00:27.7]} 36... Rh2 {[%clk 0:00:51.1]} 37. Kf1 {[%clk
0:00:25.9]} 37... Kg6 {[%clk 0:00:42.6]} 38. a4 {[%clk 0:00:21.6]} 38... Rh1+
{[%clk 0:00:36.2]} 39. Ke2 {[%clk 0:00:21.7]} 39... Ra1 {[%clk 0:00:36.7]} 40.
g4 {[%clk 0:00:21.7]} 40... f5 {[%clk 0:00:14.9]} 41. a5 {[%clk 0:00:21.7]}
41... Kf7 {[%clk 0:00:09.3]} 42. Rc8 {[%clk 0:00:15.5]} 42... Bxa5 {[%clk
0:00:05]} 43. Ra8 {[%clk 0:00:14.9]} 43... Bxc3 {[%clk 0:00:05.3]} 44. Rxa1
{[%clk 0:00:14.6]} 44... Bxb2 {[%clk 0:00:05.5]} 45. Ra7 {[%clk 0:00:14.4]}
45... fxg4 {[%clk 0:00:05.9]} 46. fxg4 {[%clk 0:00:14]} 46... Ke6 {[%clk
0:00:04.5]} 47. Rxc7 {[%clk 0:00:13.3]} 47... Bf6 {[%clk 0:00:05.2]} 48. Kf3
{[%clk 0:00:12.7]} 48... Bg5 {[%clk 0:00:05.8]} 49. Ra7 {[%clk 0:00:07.6]} 49...
Kd5 {[%clk 0:00:05.2]} 50. Ra5+ {[%clk 0:00:07.3]} 50... Kd4 {[%clk 0:00:05.2]}
51. Ra4+ {[%clk 0:00:07.1]} 51... Kd3 {[%clk 0:00:05.2]} 52. Ra5 {[%clk
0:00:05.4]} 52... Kd4 {[%clk 0:00:05.1]} 53. Ra4+ {[%clk 0:00:04.8]} 53... Ke5
{[%clk 0:00:05.7]} 54. Rb4 {[%clk 0:00:02.8]} 54... d5 {[%clk 0:00:05.8]} 55.
Ra4 {[%clk 0:00:03.1]} 55... Bd2 {[%clk 0:00:05.4]} 56. Ra2 {[%clk 0:00:03.1]}
56... Bc1 {[%clk 0:00:03]} 57. Ra4 {[%clk 0:00:03.1]} 57... Bg5 {[%clk
0:00:03.1]} 58. Ke2 {[%clk 0:00:03.3]} 58... Kd6 {[%clk 0:00:02.4]} 59. Kd3
{[%clk 0:00:03.5]} 59... Ke5 {[%clk 0:00:03]} 60. Ke2 {[%clk 0:00:03.3]} 60...
Bc1 {[%clk 0:00:02.7]} 61. Kd3 {[%clk 0:00:03.5]} 61... Bf4 {[%clk 0:00:02.4]}
62. Ke2 {[%clk 0:00:03.7]} 62... Bg5 {[%clk 0:00:03.1]} 63. Kd3 {[%clk
0:00:03.9]} 63... Bf6 {[%clk 0:00:02.5]} 64. Ke2 {[%clk 0:00:04]} 64... Be7
{[%clk 0:00:02.9]} 65. Kd3 {[%clk 0:00:04.1]} 65... Bd8 {[%clk 0:00:03.2]} 66.
Ke2 {[%clk 0:00:04.2]} 66... Bh4 {[%clk 0:00:03.9]} 67. Kd3 {[%clk 0:00:04.3]}
67... Bg5 {[%clk 0:00:03.5]} 68. Ke2 {[%clk 0:00:04.5]} 1/2-1/2

[Event "Late-Titled-Tuesday-Blitz-July-09-2024"]
[Site "Chess.com"]
[Date "2024.07.09"]
[Round "3"]
[White "EternalNight8"]
[Black "Navyblue1"]
[Result "0-1"]
[WhiteElo "2370"]
[BlackElo "2128"]
[TimeControl "180+1"]
[EndTime "14:29:43 PDT"]
[Termination "Navyblue1 won by checkmate"]

1. e4 {[%clk 0:03:00.9]} 1... c5 {[%clk 0:02:53.3]} 2. Nf3 {[%clk 0:02:59.4]}
2... d6 {[%clk 0:02:51.1]} 3. d4 {[%clk 0:02:58.6]} 3... cxd4 {[%clk 0:02:48.8]}
4. Nxd4 {[%clk 0:02:59.5]} 4... Nf6 {[%clk 0:02:43.4]} 5. Nc3 {[%clk 0:02:58.9]}
5... a6 {[%clk 0:02:44]} 6. Bg5 {[%clk 0:02:58.2]} 6... Nbd7 {[%clk 0:02:43.6]}
7. f4 {[%clk 0:02:56.4]} 7... Qc7 {[%clk 0:02:41.6]} 8. Qf3 {[%clk 0:02:48.8]}
8... h6 {[%clk 0:02:41.1]} 9. Bxf6 {[%clk 0:02:43.4]} 9... Nxf6 {[%clk
0:02:39.9]} 10. f5 {[%clk 0:02:44]} 10... b5 {[%clk 0:02:26.7]} 11. O-O-O {[%clk
0:02:39]} 11... Bb7 {[%clk 0:02:24.3]} 12. Bd3 {[%clk 0:02:12]} 12... Rc8 {[%clk
0:02:19.7]} 13. Rhe1 {[%clk 0:02:07.5]} 13... Qc5 {[%clk 0:02:13.5]} 14. Kb1
{[%clk 0:01:49.9]} 14... Nd7 {[%clk 0:01:40.1]} 15. Nb3 {[%clk 0:01:42.3]} 15...
Qe5 {[%clk 0:01:36.9]} 16. g4 {[%clk 0:01:31.5]} 16... g6 {[%clk 0:01:27.9]} 17.
fxg6 {[%clk 0:01:08]} 17... fxg6 {[%clk 0:01:28.8]} 18. Rf1 {[%clk 0:01:08.6]}
18... Qe6 {[%clk 0:01:15.8]} 19. Nd4 {[%clk 0:01:00.9]} 19... Qg8 {[%clk
0:01:11.3]} 20. Nd5 {[%clk 0:00:53.8]} 20... Bg7 {[%clk 0:01:00.7]} 21. Qe3
{[%clk 0:00:28.7]} 21... Ne5 {[%clk 0:00:50.1]} 22. g5 {[%clk 0:00:25.2]} 22...
h5 {[%clk 0:00:40.4]} 23. Nxb5 {[%clk 0:00:20]} 23... axb5 {[%clk 0:00:33.9]}
24. Bxb5+ {[%clk 0:00:20.9]} 24... Bc6 {[%clk 0:00:30.8]} 25. Qa7 {[%clk
0:00:15.4]} 25... Qe6 {[%clk 0:00:20.3]} 26. Bxc6+ {[%clk 0:00:11]} 26... Nxc6
{[%clk 0:00:18.8]} 27. Nc7+ {[%clk 0:00:11.5]} 27... Rxc7 {[%clk 0:00:18.3]} 28.
Qxc7 {[%clk 0:00:12.4]} 28... Qd7 {[%clk 0:00:17.5]} 29. Qb6 {[%clk 0:00:09.9]}
29... Ne5 {[%clk 0:00:16.9]} 30. c3 {[%clk 0:00:07.1]} 30... Qd8 {[%clk
0:00:16.4]} 31. Qf2 {[%clk 0:00:06.5]} 31... Qb8 {[%clk 0:00:15.5]} 32. Qe2
{[%clk 0:00:05.5]} 32... Kd8 {[%clk 0:00:14.3]} 33. Rf2 {[%clk 0:00:05.6]} 33...
Qb6 {[%clk 0:00:13.3]} 34. Rdf1 {[%clk 0:00:05.4]} 34... Re8 {[%clk 0:00:12.3]}
35. Qc2 {[%clk 0:00:05]} 35... Qb5 {[%clk 0:00:11.7]} 36. a3 {[%clk 0:00:04.1]}
36... Nc4 {[%clk 0:00:10.6]} 37. a4 {[%clk 0:00:01.5]} 37... Na3+ {[%clk
0:00:09.6]} 38. Kc1 {[%clk 0:00:01.9]} 38... Nxc2 {[%clk 0:00:09.2]} 39. axb5
{[%clk 0:00:01.9]} 39... Ne3 {[%clk 0:00:09.4]} 40. Re1 {[%clk 0:00:02.5]} 40...
Nc4 {[%clk 0:00:08.8]} 41. Rfe2 {[%clk 0:00:02.3]} 41... Be5 {[%clk 0:00:08.2]}
42. Kc2 {[%clk 0:00:02.6]} 42... Nb6 {[%clk 0:00:08.3]} 43. b3 {[%clk
0:00:02.9]} 43... Kd7 {[%clk 0:00:08.7]} 44. c4 {[%clk 0:00:03.5]} 44... Rc8
{[%clk 0:00:08.8]} 45. Kd3 {[%clk 0:00:04]} 45... Ke6 {[%clk 0:00:09.1]} 46. Rf1
{[%clk 0:00:04.1]} 46... Nd7 {[%clk 0:00:09.5]} 47. Ref2 {[%clk 0:00:04.4]}
47... Nc5+ {[%clk 0:00:08.1]} 48. Ke3 {[%clk 0:00:04.8]} 48... Nxb3 {[%clk
0:00:08.1]} 49. Rf7 {[%clk 0:00:02.8]} 49... Rxc4 {[%clk 0:00:08.1]} 50. b6
{[%clk 0:00:02.3]} 50... Rc3+ {[%clk 0:00:08]} 51. Ke2 {[%clk 0:00:01.9]} 51...
Nc5 {[%clk 0:00:08.5]} 52. Rh7 {[%clk 0:00:01.4]} 52... Rb3 {[%clk 0:00:08.3]}
53. Rff7 {[%clk 0:00:01.6]} 53... d5 {[%clk 0:00:06.6]} 54. Rxe7+ {[%clk
0:00:01.7]} 54... Kd6 {[%clk 0:00:06.3]} 55. exd5 {[%clk 0:00:02.3]} 55... Rxb6
{[%clk 0:00:06]} 56. Reg7 {[%clk 0:00:02.7]} 56... Kxd5 {[%clk 0:00:05.7]} 57.
Rf7 {[%clk 0:00:02.8]} 57... Ne4 {[%clk 0:00:05.3]} 58. Kf3 {[%clk 0:00:03]}
58... Nxg5+ {[%clk 0:00:05.1]} 59. Kg2 {[%clk 0:00:03.6]} 59... Nxf7 {[%clk
0:00:05.4]} 60. Rxf7 {[%clk 0:00:04.5]} 60... Rf6 {[%clk 0:00:05.3]} 61. Ra7
{[%clk 0:00:04.3]} 61... Ke6 {[%clk 0:00:05.6]} 62. Ra6+ {[%clk 0:00:04.7]}
62... Kf5 {[%clk 0:00:06.2]} 63. Ra4 {[%clk 0:00:05.3]} 63... g5 {[%clk
0:00:06.2]} 64. h3 {[%clk 0:00:05.3]} 64... h4 {[%clk 0:00:06.9]} 65. Kf3 {[%clk
0:00:05.3]} 65... Bf4 {[%clk 0:00:07.4]} 66. Ra5+ {[%clk 0:00:05.6]} 66... Kg6
{[%clk 0:00:07.6]} 67. Kg4 {[%clk 0:00:05.5]} 67... Re6 {[%clk 0:00:07.9]} 68.
Rb5 {[%clk 0:00:06]} 68... Rf6 {[%clk 0:00:07.1]} 69. Rc5 {[%clk 0:00:05.9]}
69... Be3 {[%clk 0:00:07.1]} 70. Re5 {[%clk 0:00:05.9]} 70... Rf4# {[%clk
0:00:07.2]} 0-1